Cogmind - Beta 16 @@@ ROGUE MODE // 2025.12.07 @ 12:59:23 Player: BlobtheGreat Result: Self-destructed Performance ------------- Evolutions (2) 1000 Regions Visited (3) 600 Robots Destroyed (15) 75 Value Destroyed (421) 421 Prototype IDs (13) 260 Alien Tech Used (0) 0 Bonus (17) 17 TOTAL SCORE: 2373 Bonus ------- Follower Combat Kills 95 Friendly Fire -78 Cogmind --------- Core Integrity 550/550 Matter 300/300 Energy 200/200 System Corruption 0% Temperature Cool (0) Movement Treading (160) Location -8/Materials Parts ------- > --- POWER (1) -------- Subdweller Power Source > --- PROPULSION (5) --- Light Treads Spiked Treads > --- UTILITY (3) ------ Medium Storage Unit > --- WEAPON (2) ------- Subdweller Beam Cannon Battle Cannon > --- INVENTORY (10) --- Subdweller Power Source Flightbrick Scrap Shield Subdweller Beam Cannon Mini Grenade Launcher Multitool Peak State ------------ > --- POWER ------------ Subdweller Power Source > --- PROPULSION ------- Light Treads Spiked Treads > --- UTILITY ---------- Medium Storage Unit V3-11A's Pendant > --- WEAPON ----------- Subdweller Beam Cannon Battle Cannon > --- INVENTORY -------- Subdweller Power Source Flightbrick Seismic Detector Makeshift Kinetic Plating Makeshift Hacking Suite Subdweller Beam Cannon Mini Grenade Launcher [Rating: 18] Favorites ----------- Power Subdweller Power Source Engine Subdweller Power Source Propulsion Light Treads Treads Light Treads Utility Medium Storage Unit Device V3-11A's Pendant Storage Medium Storage Unit Weapon Subdweller Beam Cannon Energy Cannon Subdweller Beam Cannon Ballistic Gun Assault Rifle Ballistic Cannon Battle Cannon Launcher Mini Grenade Launcher Build | -11 -10 -10 -8 ------- Run | Yrd Mat Sub Mat Slots Evolved 4 | . . . 4 Power . | . . . . Propulsion 3 | . . . 3 Utility 1 | . . . 1 Weapon . | . . . . Parts Attached 17 | 7 . 10 . Power 3 | 1 . 2 . Engine 3 | 1 . 2 . Core . | . . . . Reactor . | . . . . Propulsion 3 | 2 . 1 . Treads 3 | 2 . 1 . Leg . | . . . . Wheel . | . . . . Hover . | . . . . Flight . | . . . . Utility 4 | 2 . 2 . Device 2 | 1 . 1 . Storage 2 | 1 . 1 . Processor . | . . . . Hackware . | . . . . Protection . | . . . . Artifact . | . . . . Weapon 7 | 2 . 5 . Energy Gun . | . . . . Energy Cannon 1 | . . 1 . Ballistic Gun 3 | 2 . 1 . Ballistic Cannon 1 | . . 1 . Launcher 2 | . . 2 . Special Weapon . | . . . . Impact Weapon . | . . . . Slashing Weapon . | . . . . Piercing Weapon . | . . . . Special Melee Weapon . | . . . . Unidentified Prototypes 1 | . . 1 . Parts Lost 2 | . . 2 . Power 1 | . . 1 . Propulsion 1 | . . 1 . Utility . | . . . . Weapon . | . . . . Highest Loss Streak 1 | . . 1 . To Critical Strikes . | . . . . Average Backups 8 | 4 7 8 6 Power 1 | . 1 1 1 Propulsion 1 | 2 3 1 1 Utility 2 | . 1 2 1 Weapon 2 | . 2 2 2 Tool/Special . | . . . . Unused Backups 15 | . 2 8 5 Power 2 | . . 1 1 Propulsion 5 | . 1 3 1 Utility 4 | . . 3 1 Weapon 3 | . 1 1 1 Tool/Special 1 | . . . 1 Average Slot Usage (%) 99 | . 100 99 54 Engine 13 | . 14 13 9 Treads 27 | . 28 28 18 Device 13 | . 14 14 . Storage 13 | . 14 14 9 Energy Cannon 11 | . . 12 9 Ballistic Gun 4 | . 28 2 . Ballistic Cannon 11 | . . 11 9 Peak Build Rating 18 | 7 8 18 14 Average Rating 13 | 5 7 14 14 On Entrance 8 | . 7 8 17 Avg Prop Armor Cover (%) . | . . . . Naked Turns . | . . . . Heaviest Build 27 | 12 12 27 26 Greatest Support 40 | 40 40 40 40 Greatest Overweight (x) 1 | . . 1 . Average Overweight (x) . | . . . . Largest Inventory Capacity 10 | 8 8 10 10 Average Capacity 9 | 7 8 9 10 Most Carried 10 | 7 8 10 10 Average Carried 9 | 4 7 9 10 Final Capacity 10 | 8 8 10 10 Final Carried 10 | 7 8 10 10 Class Distribution -------------------- 100% | Mutant Dominant Class ---------------- Mutant | -10/Materials Mutant | -10/Subcaves Mutant | -8/Materials Resources | -11 -10 -10 -8 ----------- Run | Yrd Mat Sub Mat Matter Collected 780 | 326 . 454 . Remotely . | . . . . Salvage Created 401 | 142 . 259 . Parts 34 | 10 . 24 . Haulers Intercepted . | . . . . Recyclers Shooed 1 | 1 . . . Parts Field Recycled . | . . . . Retrieved Matter . | . . . . Parts Self-Destructed 16 | . . 16 . Prevented . | . . . . Parts Restored . | . . . . Kills | -11 -10 -10 -8 ------- Run | Yrd Mat Sub Mat Combat Hostiles Destroyed 10 | . . 10 . Guns 1 | . . 1 . Cannons 2 | . . 2 . AOE 7 | . . 7 . Classes Destroyed 7 | 2 . 5 . Tunneler 3 | 3 . . . Recycler 1 | 1 . . . Turret 1 | . . 1 . Swarmer 1 | . . 1 . Grunt 1 | . . 1 . Artisan 2 | . . 2 . Subdweller 8 | . . 8 . Best Kill Streak 7 | 4 . 7 . Combat Bots Only 7 | . . 7 . Max Kills in Single Turn 3 | 1 . 3 . Gunslinging . | . . . . Exploded 3 | . . 3 . Melee . | . . . . Uniques/NPCs Destroyed . | . . . . Combat | -11 -10 -10 -8 -------- Run | Yrd Mat Sub Mat Hostile Shots Fired 32 | . 3 29 . Missed 13 | . 2 11 . Hits 19 | . 1 18 . Projectile 19 | . 1 18 . AOE 4 | . . 4 . Damage Taken 541 | . 18 523 . Core 20 | . . 20 . Absorbed by Shields . | . . . . Core Remaining (%) 96 | 100 . 92 . Volleys Fired 80 | 14 2 64 . Largest 2 | 2 2 2 . Hottest 80 | 40 40 80 . Shots Fired 100 | 28 4 68 . Gun 44 | 28 4 12 . Cannon 37 | . . 37 . Launcher 19 | . . 19 . Special . | . . . . Kinetic 58 | 28 4 26 . Thermal 23 | . . 23 . Explosive 19 | . . 19 . Electromagnetic . | . . . . Robot Hit Streak 18 | 4 1 18 . Robot Miss Streak 4 | 2 1 4 . Penetration Max . | . . . . Secondary Targets . | . . . . Shots Hit Robots 44 | 17 2 25 . Core Hits 39 | 7 . 32 . Critical Kills . | . . . . Critical Parts Destroyed . | . . . . Critical Strikes . | . . . . Melee Attacks . | . . . . Impact . | . . . . Slashing . | . . . . Piercing . | . . . . Sneak Attacks . | . . . . Combat Hostiles . | . . . . Follow-up Attacks . | . . . . Damage Inflicted 2231 | 182 20 2029 . Guns 285 | 182 20 83 . Cannons 299 | . . 299 . Explosions 1647 | . . 1647 . Melee . | . . . . Ramming . | . . . . Kinetic 285 | 182 20 83 . Thermal 299 | . . 299 . Explosive 1647 | . . 1647 . Electromagnetic . | . . . . Impact . | . . . . Slashing . | . . . . Piercing . | . . . . Highest Corruption . | . . . . Average Corruption . | . . . . Corruption Purged . | . . . . Corruption Blocked . | . . . . Overload Shots . | . . . . Overflow Damage 4 | . . 4 . Projectiles . | . . . . Explosions 4 | . . 4 . Melee . | . . . . Knockbacks . | . . . . Impact . | . . . . Kinetic . | . . . . Secondary . | . . . . Self-Inflicted Damage . | . . . . Shots . | . . . . Rammed 1 | . 1 . . Targets Rammed 1 | . 1 . . Kicked . | . . . . Crushed . | . . . . Highest Temperature 4 | . . 4 . Average Temperature 2 | . . 2 . Received Heat Transfer 48 | . 9 39 . Siege Activations . | . . . . Martial Activations . | . . . . Shielding Activations . | . . . . Robots Disrupted . | . . . . Combat Hostiles . | . . . . Robots Corrupted . | . . . . Combat Hostiles . | . . . . Parts Fried . | . . . . Impact Corruptions . | . . . . Robots Melted . | . . . . Combat Hostiles . | . . . . Parts Melted . | . . . . Heat Transferred 407 | . . 407 . Parts Sabotaged . | . . . . Parts Stolen . | . . . . Parts Stripped . | . . . . Power Chain Reactions . | . . . . Alert | -11 -10 -10 -8 ------- Run | Yrd Mat Sub Mat Maximum Alert Level . | . . . . Low Security (%) 100 | 100 100 . 100 Level 1 . | . . . . Level 2 . | . . . . Level 3 . | . . . . Level 4 . | . . . . Level 5 . | . . . . High Security . | . . . . Max Security . | . . . . Peak Influence 30 | 10 30 . . Initial . | . . . . Average 3 | 1 4 . . Influence Increases 191 | 20 30 141 . Destroy 0b10 Robot/C 100 | . . 100 . Destroy 0b10 Robot/NC 20 | 20 . . . Destroy Leader 10 | . . 10 . Allied During Kill 16 | . . 16 . Select Force Hacks 30 | . 30 . . Lose Combat Pursuer 15 | . . 15 . Influence Decreases 191 | 20 30 141 . Time Decay 92 | 20 30 42 . Lost Ally 99 | . . 99 . Squads Dispatched 2 | . 2 . . Investigation 1 | . 1 . . Extermination . | . . . . Reinforcement 1 | . 1 . . Assault . | . . . . Garrison . | . . . . Intercept . | . . . . Searches Triggered . | . . . . Construction Impeded . | . . . . Haulers Reinforced . | . . . . Active Scanning Responses . | . . . . Cargo Convoy Interrupts . | . . . . Stealth | -11 -10 -10 -8 --------- Run | Yrd Mat Sub Mat Distress Signals 2 | . 2 . . Communications Jammed . | . . . . Distress Signals . | . . . . Times Spotted 26 | . 3 23 . Peak Tracking Total 6 | . 3 6 . Tactical Retreats 1 | . . 1 . Traps | -11 -10 -10 -8 ------- Run | Yrd Mat Sub Mat Traps Triggered 2 | . . 2 . Indirectly . | . . . . Trap Hack Attempts . | . . . . Triggered . | . . . . Disarmed . | . . . . Reprogrammed . | . . . . Reused . | . . . . Traps Extracted . | . . . . Installed . | . . . . Triggered . | . . . . Machines | -11 -10 -10 -8 ---------- Run | Yrd Mat Sub Mat Machines Disabled 6 | . . 6 . Max in Single Turn 2 | . . 2 . Machines Repaired . | . . . . Machines Dismantled . | . . . . Machines Sabotaged . | . . . . Overloaded Fab Kills . | . . . . Hacking | -11 -10 -10 -8 --------- Run | Yrd Mat Sub Mat Machines Accessed 4 | . 2 2 . Terminals 1 | . 1 . . Fabricators . | . . . . Repair Stations . | . . . . Recycling Units 1 | . 1 . . Scanalyzers . | . . . . Garrison Access . | . . . . Total Hacks 8 | . 3 5 . Successful 6 | . 1 5 . Failed 2 | . 2 . . Catastrophic 2 | . 2 . . Database Lockouts . | . . . . Manual 3 | . 3 . . Terminals 1 | . 1 . . Fabricators . | . . . . Repair Stations . | . . . . Recycling Units 2 | . 2 . . Scanalyzers . | . . . . Garrison Access . | . . . . Terminal Hacks 5 | . . 5 . Record 4 | . . 4 . Proto ID Catalog 1 | . . 1 . Fabricator Hacks . | . . . . Repair Station Hacks . | . . . . Recycling Unit Hacks . | . . . . Scanalyzer . | . . . . Garrison Access Hacks . | . . . . Unauthorized Hacks 1 | . 1 . . Terminals . | . . . . Fabricators . | . . . . Repair Stations . | . . . . Recycling Units 1 | . 1 . . Tunnel 1 | . 1 . . Scanalyzers . | . . . . Garrison Access . | . . . . Data Cores Recovered . | . . . . Used . | . . . . Hacking Detections 1 | . 1 . . Full Trace Events . | . . . . Feedback Events . | . . . . Feedback Blocked . | . . . . Robot Schematics Acquired . | . . . . Robots Built . | . . . . Authchips . | . . . . Time . | . . . . Total Robot Build Rating . | . . . . Part Schematics Acquired . | . . . . Parts Built . | . . . . Authchips . | . . . . Time . | . . . . Total Part Build Rating . | . . . . Part Studies Acquired . | . . . . Parts Repaired . | . . . . Time . | . . . . Parts Recycled . | . . . . Recycled Matter . | . . . . Retrieved Matter . | . . . . Retrieved Components . | . . . . Parts Scanalyzed . | . . . . Part Schematics Acquired . | . . . . Parts Damaged . | . . . . Bothacking | -11 -10 -10 -8 ------------ Run | Yrd Mat Sub Mat Used RIF Installer . | . . . . Robots Hacked . | . . . . Non-combat . | . . . . Combat . | . . . . Robot Hacks Applied . | . . . . Relay Couplers Released . | . . . . Fabnet Peak Effective % . | . . . . Robots Rewired . | . . . . Allies Hacked . | . . . . Hacks Repelled . | . . . . Allies | -11 -10 -10 -8 -------- Run | Yrd Mat Sub Mat Total Allies 7 | . . 7 . Largest Group 6 | . . 6 1 Highest-Rated Group 114 | . . 114 19 Highest-Rated Ally 19 | . . 19 19 Total Orders . | . . . . Ally Attacks 30 | . . 30 . Total Damage 399 | . . 399 . Kills 4 | . . 4 . Allies Corrupted . | . . . . Allies Melted . | . . . . Intel | -11 -10 -10 -8 ------- Run | Yrd Mat Sub Mat Active Infowar (turns) 1674 | 57 242 1375 . Seismic 1674 | 57 242 1375 . Robot Analysis Total . | . . . . Derelict Logs Recovered 1 | . . 1 . Drone Launches . | . . . . Drone Recoveries . | . . . . Exploration | -11 -10 -10 -8 ------------- Run | Yrd Mat Sub Mat Turns Passed 4325 | 169 242 3892 22 Spaces Moved 2505 | 75 145 2272 13 Core 6 | 6 . . . Treads 2499 | 69 145 2272 13 Legs . | . . . . Wheels . | . . . . Hover . | . . . . Flight . | . . . . Fastest Speed 50 | 50 160 160 160 Average Speed 159 | 151 160 160 160 Slowest Speed 240 | 160 160 240 160 Overloaded Moves . | . . . . Propulsion Burnouts . | . . . . Robots Hopped . | . . . . Potential Cave-ins . | . . . . Cave-ins Triggered . | . . . . Exploration Rate (%) 32 | 5 27 95 4 Regions Visited 3 Branch Regions 1 Pre-discovered Areas 2 | . 1 1 . Known Exits Taken . | . . . . Unknown Exits Taken 3 | 1 1 1 . Scrap Searched 10 | . . 10 . Spaces Dug . | . . . . Terrain Destroyed 82 | . . 82 . Melee . | . . . . Projectile 5 | . . 5 . AOE 77 | . . 77 . Terrain Rammed . | . . . . Walls Destroyed . | . . . . Machines Disabled . | . . . . Actions | -11 -10 -10 -8 --------- Run | Yrd Mat Sub Mat Total 2729 | 102 152 2461 14 Wait 83 | . . 83 . Move 2502 | 74 144 2271 13 Hop . | . . . . Pick Up 19 | 7 3 9 . Fast Attach 13 | 7 . 6 . Attach 1 | . . 1 . Detach 1 | . . 1 . Swap 10 | . . 10 . Drop 19 | . 2 16 1 Fire 80 | 14 2 64 . Melee . | . . . . Ram . | . . . . Kick . | . . . . Crush 1 | . 1 . . Escape Stasis . | . . . . Rewire . | . . . . Trap . | . . . . Miscellaneous . | . . . . Route ------- -11/Scrapyard -10/Materials (discovered 3 exits: [*Mat] / [*Min] / *Sub) -10/Subcaves (discovered 4 exits: [*Mat x2] / [*Rec] / [*Scr]) -8/Materials History --------- Turn | Location | Event 10 | -11/Scrapyard | Discovered new exit (range 16) 170 | -11/Scrapyard | Entered Materials 171 | -10/Materials | Met a group of wandering Federalists 269 | -10/Materials | Discovered new exit (range 8) 314 | -10/Materials | Build established: Mutant 371 | -10/Materials | Discovered new exit (range 6) 409 | -10/Materials | Discovered new exit (range 3) 412 | -10/Materials | Entered Subcaves 413 | -10/Subcaves | Continued accompanying wandering Federalists (6) 442 | -10/Subcaves | Learned location of Zion (-6) 442 | -10/Subcaves | Met a Zionite searching for "candidates" 448 | -10/Subcaves | Discovered new exit (range 7) 603 | -10/Subcaves | Wandering Federalist uncovered a shortcut to Scraptown 633 | -10/Subcaves | Learned 2 Materials zone layouts 698 | -10/Subcaves | Destroyed 7 combat bots 730 | -10/Subcaves | Shifting Twisted Machinery released Sub. Beam Cannon 842 | -10/Subcaves | Disturbed a concealed Subdweller 1282 | -10/Subcaves | Shifting Twisted Machinery released Sub. Beam Cannon 1577 | -10/Subcaves | Visited Clippyterm 1582 | -10/Subcaves | Learned 40 Factory zone layouts 1582 | -10/Subcaves | Learned Factory emergency access door positions 1776 | -10/Subcaves | Visited triangular shrine 1786 | -10/Subcaves | Found Prototype Device 1787 | -10/Subcaves | Identified V3-11A's Pendant 1792 | -10/Subcaves | Befriended Subdweller 2117 | -10/Subcaves | Befriended Subdweller 2117 | -10/Subcaves | Befriended Subdweller 2147 | -10/Subcaves | Befriended Subdweller 2202 | -10/Subcaves | Befriended Subdweller 2231 | -10/Subcaves | Shifting Twisted Machinery released Sub. Power Source 2232 | -10/Subcaves | Befriended Subdweller 2368 | -10/Subcaves | Visited 4L-MR0's lab 2390 | -10/Subcaves | Found Flightbrick 2749 | -10/Subcaves | Discovered new exit (range 5) 2805 | -10/Subcaves | Discovered new exit (range 14) 2849 | -10/Subcaves | Lost 3 allies 2962 | -10/Subcaves | Befriended Subdweller 3346 | -10/Subcaves | Shifting Twisted Machinery released Sub. Laser 4304 | -10/Subcaves | Entered Materials 4304 | -8/Materials | Accompanied by 1 ally 4304 | -8/Materials | Evolved 4 slots: Propulsion x3, Utility x1 4326 | -8/Materials | Self-destructed Last Messages --------------- 02962_ ZL-93V(R): "SUBSUB?" 03289_ Triggered Piercing Trap. 03289_ Spikes shoot up from the floor. Sub. Laser falls loose from the Twisted Machinery. 03414_ ZL-93V(R) affixes Scrap Shield Fragment to Scrap Shield. 03514_ Triggered Piercing Trap. 03514_ Spikes shoot up from the floor. 03514_ Critical hit (Impale). 04086_ Dropped Seismic Detector. 04086_ Dropped Mak. Hacking Suite. 04087_ Acquired Scrap Shield. 04119_ Subatomizers dissect the Battle Cannon, destroying it. PARAMETERS=PROPULSION+3,UTILITY+1 LOCATION=UNKNOWN GOAL=ESCAPE 04304_ Dropped V3-11A's Pendant. Loading 2 Materials zones... Map ----- +----------------------------------------------------+ | ???????????#+## ##### # # | | ??????????? ##+######## ######### | | ???????????" # ## ## # | | ???????????S # ## ## """ # | | ??????????? # ## ## "G" # | | ??????????? # ## ## " " # | | ??????????? # # # # | | ???????????#### # # """ # | | ??????????????# # + """ # | | ??????????????# # # """ # | | ??????????????# ## ## # | | ??????????????########### ## """ # | | ???????????#### + ## """ # | | ??????????? # # ## """ # | | ??????????? # #a ## # | | ??????????? # # ######### | | ??????????? # # # # | | ??????????? # """ """ # + """ # | | ???????????"" # """ """ # # """ # | | ???????????"" # """ """ # # """ # | | ???????????"" ########### ## """ # | | ?????########+########### ## """ # | | ????? # ## # | | ????? ! # ## # | | ?????????""" """ # #????????? | | ?????????""" """ #####@#####????? | | ?????"" """ """ *# #????? | | ??? # #????? | | ??? + R [ #????? | | ?????"" """ """ # #????? | | ??????"??""" """ ###########????? | | ?????????""" """ #??????????????? | | ????????? #??????????????? | | ????????? #??????????????? | | ???????? """ """ #??????????????? | | ???????????" """ #??????????????? | | ???????????" """ ??????????????? | | ?????????? ?? ! ??????????????? | | ??????????? ???? ??????????????? | | ???????????????#+####??????????????? | | ???????????????????????????????????? | | ???????????????????????????????????? | | ???????????????????????????????????? | | ???????????????????????????????????? | | ???????????????????????????????????? | | ???????????????????????????????????? | | ???????????????????????????????????? | | ???????????????????????????????????? | | ???????????????????????????????????? | | ???????????????????????????????????? | +----------------------------------------------------+ Best States ------------- Heat Dissipation 31 Energy Generation 10 Energy Capacity 200 Matter Stores 300 Matter Capacity 300 Sight Range 16 Terrain Scan Density 10 Evasion (%) 40 Recoil Reduction 2 Item Schematics ----------------- None Robot Schematics ------------------ None Fabricated ------------ Nothing Repaired ---------- Nothing Studied --------- None Alien Tech Used ----------------- None Achievements -------------- None Challenges ------------ None Game ------ Seed MiningFlyingBallwheel Manual? 0 Play Time 00:14:45 Cumulative 208.8 hours Start 2025.12.07 @ 12:44:23 End 2025.12.07 @ 12:59:23 Sessions 1 Manual Loads 0 Difficulty Rogue Special Mode None Game No. 194 Rogue 194 Adventurer 0 Explorer 0 Win Type - Total 10 Types 7/0/2/0/0/0/0/0/0/1 Lore% 84 Gallery% 73 Achievement% 59 Wizard Run 0 Options --------- Layout 1 ASCII 0 Keyboard 1 Movement Arrows Keybinds 0 Fullscreen 1 Font 24/Smallcaps Map View 50x40 Zoom Use 0% Tactical HUD 1 Map Filters NONE Filters NONE Steam 1 RUN: da5b8e00-a345-4da5-81dd-7ff676b6330c